[Event "Mongolian Championship Open 2022"]
[Site "Chingis Khentii"]
[Date "2022.05.20"]
[Round "8.5"]
[White "Gundavaa, Bayarsaikhan"]
[Black "Amilal Munkhdalai"]
[Result "1/2-1/2"]
[ECO "B48"]
[WhiteElo "2495"]
[BlackElo "2033"]
[Annotator "TA"]
[PlyCount "87"]
[EventDate "2022.05.12"]
[EventType "tourn"]
[EventCountry "MGL"]
[SourceTitle "playchess.com"]
[Source "ChessBase"]
[SourceQuality "1"]
[TimeControl "40/5400+30:1800+30"]

{[%evp 11,87,28,31,27,21,33,52,22,28,39,49,47,52,26,35,41,55,34,27,27,29,11,22,7,16,19,119,112,137,137,131,116,108,86,88,84,124,0,0,0,0,0,0,-111,12,8,8,9,27,23,22,0,0,0,0,-5,-5,-18,-7,-16,-6,-114,-114,-115,-115,-115,0,0,0,0,0,0,0,0,0,0,0,0]} 1. e4 {[%emt 0:00:02]} c5 {[%emt 0:00:04]} 2. Nf3 {[%emt 0:00:30]} Nc6 {[%emt 0:00:05]} 3. d4 {[%emt 0:00:58]} cxd4 {[%emt 0:00:08]} 4. Nxd4 {[%emt 0:00:07]} Qc7 {[%emt 0:00:04]} 5. Nc3 {[%emt 0:00:21]} e6 {[%emt 0:00:05]} 6. Be3 {[%emt 0:00:31]} a6 {[%emt 0:00:20]} 7. Qf3 {[%emt 0:00:15] B48: Sicilian: Taimanov: 5 Nc3 Qc7 6 Be3 a6 without Be2.} Nf6 {[%emt 0:01:48][%cal Of8a3]} 8. O-O-O {[%emt 0:00:50]} Be7 {[%emt 0:01:42]} 9. Be2 {[%emt 0:02:36] White is slightly better.} O-O {[%emt 0:12:07] 9...d6 might become the main line.} 10. Qg3 {[%emt 0:16:13]} (10. Nxc6 {is more complex.} bxc6 11. Qg3 d6 12. Bh6) 10... Qxg3 {[%emt 0:11:36]} 11. hxg3 {[%emt 0:00:16][%cal Bh2g3,Bg3g4,Bg4g5][%mdl 32]} ({Don't play} 11. fxg3 b5 $11) 11... b5 {[%emt 0:02:01] [#]} 12. g4 $146 {[%emt 0:08:16]} ({Predecessor:} 12. Nxc6 dxc6 13. g4 e5 14. g5 Ng4 15. Bxg4 Bxg4 16. f3 Be6 17. Rh5 f5 18. Rdh1 {1-0 (32) Arenas Vanegas,D (2463)-Panesso Rivera,H (2361) Medellin 2019}) 12... Nxd4 {[%emt 0:27:15]} 13. Rxd4 {[%emt 0:01:14]} d6 {[%emt 0:03:36]} 14. f3 {[%emt 0:09:55]} (14. g5 $5 {[%cal Rg5f6]} Nd7 15. a4 $14) 14... Bb7 {[%emt 0:02:11]} 15. g5 {[%emt 0:04:55]} Nd7 {[%emt 0:00:25]} 16. a4 {[%emt 0:03:20]} Bc6 {[%emt 0:07:03]} 17. b3 {[%emt 0:01:52][%cal Ra4b5]} Rfb8 {[%emt 0:05:45]} (17... Rfc8 {looks sharper.} 18. axb5 axb5 19. Kb2 b4) 18. Rhd1 {[%emt 0:10:09]} b4 {[%emt 0:11:37]} (18... Ne5 $11 {remains equal.}) 19. Rxd6 $16 {[%emt 0:16:57]} Bxd6 {[%emt 0:00:18]} 20. Rxd6 {[%emt 0:00:03]} Rc8 {[%emt 0:00:09]} 21. Nb1 {[%emt 0:01:55][%mdl 1024] White has strong compensation.} Kf8 {[%emt 0:05:36]} 22. Nd2 {[%emt 0:00:07]} Ke7 {[%emt 0:00:54]} 23. Nc4 {[%emt 0:01:07]} a5 {[%emt 0:03:28][%cal Od7e5]} 24. Kb2 {[%emt 0:01:09] 0x0.000a5a986631dp-1022s more active pieces.} ({White should try} 24. Rd1 $16) 24... Ne5 $1 $11 {[%emt 0:02:28] And now ...Nxc4+ would win.} 25. Rd1 {[%emt 0:11:48]} Nxc4+ {[%emt 0:00:10]} 26. Bxc4 {[%emt 0:00:04]} Bxa4 {[%emt 0:00:41][%cal Oe7f8]} 27. Bd4 {[%emt 0:00:03] [#]} (27. Rh1 $1 $11) 27... f6 {[%emt 0:01:33]} 28. gxf6+ {[%emt 0:00:20]} gxf6 {[%emt 0:00:04][%cal Oe6e5]} 29. Rh1 {[%emt 0:00:06]} Be8 {[%emt 0:01:14]} 30. Rxh7+ {[%emt 0:00:06]} Bf7 {[%emt 0:00:12]} 31. e5 {[%emt 0:03:38]} fxe5 {[%emt 0:00:14]} 32. Bxe5 {[%emt 0:00:03]} Rc5 {[%emt 0:00:15]} 33. f4 {[%emt 0:03:01]} Rg8 {[%emt 0:00:20]} 34. Rh2 {[%emt 0:00:48]} Rg4 {[%emt 0:00:44]} 35. Be2 {[%emt 0:01:02] A strong pair of Bishops.} Rg3 {[%emt 0:00:27] ...Bg6 is the strong threat.} 36. Bf3 {[%emt 0:00:16]} (36. Bd4 $11 {keeps the balance.} Rd5 37. Bf2) 36... Bg6 $17 {[%emt 0:00:39]} 37. c3 {[%emt 0:00:03]} bxc3+ 38. Bxc3 {[%emt 0:00:01] [#]} Bf5 {[%emt 0:01:37]} (38... Be4 $1 $17 {[%cal Re4f3][%mdl 512]} 39. b4 (39. Be1 $2 Rc2+ 40. Ka3 Rxf3 $19) 39... Rc4) 39. Rh8 $11 {[%emt 0:00:44] The position is equal.} Rxc3 {[%emt 0:00:29]} 40. Kxc3 {[%emt 0:00:00]} Be4 $1 {[%emt 0:00:00]} 41. Rh5 {[%emt 0:04:36]} Bxf3 {[%emt 0:00:16]} 42. gxf3 {[%emt 0:00:05]} Rxf3+ {[%emt 0:00:04]} 43. Kc2 {[%emt 0:00:04]} Rxf4 {[%emt 0:00:10]} 44. Rxa5 {[%emt 0:00:04] Weighted Error Value: White=0.22 (precise) /Black=0.20 (precise)} 1/2-1/2

[Event "Mongolian Championship Open 2022"]
[Site "Chingis Khentii"]
[Date "2022.05.20"]
[Round "8.6"]
[White "Amartuvshin, Ganzorig"]
[Black "Enkhnar, Enkhbaatar"]
[Result "1-0"]
[ECO "D46"]
[WhiteElo "2350"]
[BlackElo "2368"]
[Annotator "TA"]
[PlyCount "79"]
[EventDate "2022.05.12"]
[EventType "tourn"]
[EventCountry "MGL"]
[SourceTitle "playchess.com"]
[Source "ChessBase"]
[SourceQuality "1"]
[TimeControl "40/5400+30:1800+30"]

{[%evp 18,79,22,19,28,5,9,11,66,38,31,43,52,27,53,41,54,27,45,15,4,13,19,0,0,0,0,0,0,0,20,0,0,-7,-9,-19,13,0,11,12,53,0,25,28,116,117,126,72,162,172,314,139,552,531,710,708,718,676,665,650,789,623,585,584]} 1. d4 {[%emt 0:00:04]} Nf6 {[%emt 0:00:24]} 2. c4 {[%emt 0:00:12]} e6 {[%emt 0:00:04]} 3. Nf3 {[%emt 0:00:10]} d5 {[%emt 0:00:29]} 4. Nc3 {[%emt 0:00:09]} c6 {[%emt 0:02:52]} 5. e3 {[%emt 0:00:10]} Nbd7 {[%emt 0:02:49]} 6. Qc2 {[%emt 0:00:48]} Bd6 {[%emt 0:01:05]} 7. Bd3 {[%emt 0:00:08]} O-O {[%emt 0:01:14]} 8. O-O {[%emt 0:00:25]} dxc4 {[%emt 0:00:59]} 9. Bxc4 {[%emt 0:00:08]} e5 {[%emt 0:03:54]} 10. h3 {[%emt 0:00:36]} Qc7 {[%emt 0:11:31] D46: Semi-Slav: 5 e3 Nbd7 6 Bd3, Black avoids the Meran.} 11. e4 {[%emt 0:11:24]} exd4 {[%emt 0:02:09]} 12. Nxd4 {[%emt 0:00:15] [#]} Bf4 $146 {[%emt 0:01:01]} (12... b5 $11 13. Bd3 Nc5) ({Predecessor:} 12... Ne5 13. Be2 Ng6 14. Bg5 Be7 15. Qc1 h6 16. Be3 Bd7 17. f4 Rac8 18. e5 Nd5 19. Nxd5 cxd5 20. Qxc7 Rxc7 {½-½ (47) Nickl,K (2139)-Mai,H (1944) Sibenik 2014}) 13. Bxf4 {[%emt 0:08:44]} Qxf4 {[%emt 0:00:06]} 14. Nde2 {[%emt 0:00:56]} Qg5 {[%emt 0:03:49]} 15. Bb3 {[%emt 0:15:32]} Nb6 {[%emt 0:09:37][%cal Bd7b6,Bb6c4,Bc4b2][%mdl 32]} 16. f4 {[%emt 0:01:37]} Qc5+ {[%emt 0:00:07]} 17. Kh1 {[%emt 0:00:28]} Be6 {[%emt 0:00:57]} 18. Bxe6 {[%emt 0:05:38]} fxe6 {[%emt 0:01:17]} 19. Qb3 {[%emt 0:03:54]} Qc4 {[%emt 0:00:50]} 20. Qxc4 {[%emt 0:19:12]} Nxc4 {[%emt 0:00:07]} 21. e5 {[%emt 0:30:30]} Nd5 {[%emt 0:01:33]} 22. Ne4 {[%emt 0:00:00]} Nxb2 {[%emt 0:04:36]} 23. Rab1 {[%emt 0:00:00]} Nc4 {[%emt 0:01:32]} 24. g3 {[%emt 0:00:00][%mdl 1024] White has compensation.} Rf7 {[%emt 0:02:00]} 25. Rfd1 {[%emt 0:00:00]} Re7 {[%emt 0:02:17]} 26. Rbc1 {[%emt 0:00:00]} Ncb6 {[%emt 0:03:38]} 27. Nc5 {[%emt 0:00:00]} Rb8 {[%emt 0:04:50]} 28. Nd4 {[%emt 0:00:00]} Kf7 {[%emt 0:00:51]} 29. a4 {[%emt 0:00:00]} (29. Rd3 $14) 29... Ne3 {[%emt 0:02:17]} 30. Rd3 {[%emt 0:00:00]} Ned5 {[%emt 0:16:59]} (30... Rd8 $11) 31. a5 $16 {[%emt 0:00:00]} Nd7 {[%emt 0:00:32]} 32. Ne4 {[%emt 0:00:00] White is much more active.} (32. Ndxe6 $142 $1 Nxc5 33. Nxc5) 32... Nf8 {[%emt 0:00:04]} (32... a6 $16) 33. Rb3 $18 {[%emt 0:00:38][%cal Od4c6] Nxc6! is the strong threat.} Rc7 {[%emt 0:04:56] [#]} (33... Kg8 $142 34. Rxc6 Rd8) 34. a6 {[%emt 0:01:40]} (34. Rxc6 $3 $18 {[%mdl 512] has better winning chances.} Rd7 35. Nc5) 34... Kg6 $2 {[%emt 0:02:34][%mdl 8192] [#] Black cannot hold the game after this.} (34... b6 $16 35. Nxc6 (35. Rxc6 Rxc6 36. Nxc6 Ra8 $16) 35... Kg8) 35. Rxc6 $3 {[%emt 0:00:56][%mdl 576] Pin. White is clearly winning.} b5 {[%emt 0:01:29]} (35... bxc6 36. Rxb8) 36. f5+ {[%emt 0:00:25]} Kh6 {[%emt 0:03:59]} 37. fxe6 {[%emt 0:00:07]} Rxc6 {[%emt 0:00:05]} 38. Nxc6 {[%emt 0:00:07]} Re8 {[%emt 0:00:02]} 39. e7 {[%emt 0:00:21]} Nxe7 {[%emt 0:00:08]} 40. Nd6 {[%emt 0:00:00] Weighted Error Value: White=0.21 (precise) /Black=0.58} 1-0

[Event "Mongolian Championship Open 2022"]
[Site "Chingis Khentii"]
[Date "2022.05.21"]
[Round "9.1"]
[White "Bilguun, Sumiya"]
[Black "Boldoo, Erdenepurev"]
[Result "1-0"]
[ECO "B23"]
[WhiteElo "2454"]
[BlackElo "2371"]
[Annotator "TA"]
[PlyCount "85"]
[EventDate "2022.05.12"]
[EventType "tourn"]
[EventCountry "MGL"]
[SourceTitle "playchess.com"]
[Source "ChessBase"]
[SourceQuality "1"]
[TimeControl "40/5400+30:1800+30"]

{[%evp 9,85,-7,0,0,0,1,25,-16,-25,-32,0,0,0,0,0,0,0,0,21,-8,-11,-4,0,0,0,0,0,0,0,1,30,0,32,-25,-30,-35,-27,-27,-43,-49,25,44,26,12,107,106,95,100,90,106,100,107,104,21,116,116,124,114,137,131,131,106,143,125,102,86,153,113,188,181,189,156,335,347,467,467,745,647]} 1. e4 {[%emt 0:00:03]} c5 {[%emt 0:00:04]} 2. Nc3 {[%emt 0:00:05]} e6 {[%emt 0:00:14]} 3. f4 {[%emt 0:00:04]} d5 {[%emt 0:00:22]} 4. Nf3 {[%emt 0:00:08]} d4 {[%emt 0:04:18]} 5. Bb5+ {[%emt 0:00:19]} Bd7 {[%emt 0:00:43]} 6. Bxd7+ $1 {[%emt 0:00:06] B23: Closed Sicilian: Lines without g3.} Qxd7 {[%emt 0:00:24]} 7. Ne5 {[%emt 0:00:25]} Qc7 {[%emt 0:04:31] [#]} 8. Ne2 $146 {[%emt 0:03:41] White has an edge.} (8. Nb5 $5 {[%cal Rb5c7]} Qd8 9. a4 $11 (9. Qh5 g6 $11)) ({Predecessor:} 8. Nb5 Qa5 9. a4 a6 10. b4 Qd8 11. Na3 cxb4 12. Nac4 Ne7 13. d3 Nbc6 14. O-O {0-1 (44) Budzinski,J (1881)-Gromczak,D (2052) Polanica Zdroj 2010}) 8... Nc6 {[%emt 0:02:18]} 9. Nf3 {[%emt 0:01:17]} Be7 {[%emt 0:01:55][%cal Od4d3]} 10. d3 {[%emt 0:00:54]} Nf6 {[%emt 0:00:21]} 11. O-O {[%emt 0:00:27]} O-O {[%emt 0:05:42]} 12. Ng3 {[%emt 0:00:16]} b5 {[%emt 0:03:46]} 13. Qe2 {[%emt 0:00:40]} Rac8 {[%emt 0:06:02]} 14. Bd2 {[%emt 0:01:16]} c4 {[%emt 0:07:27]} 15. e5 {[%emt 0:16:45]} Nd5 {[%emt 0:02:37]} 16. f5 {[%emt 0:07:05]} c3 {[%emt 0:19:59]} 17. bxc3 {[%emt 0:03:44]} dxc3 {[%emt 0:00:05]} 18. Bc1 {[%emt 0:00:34]} Bc5+ {[%emt 0:00:34]} 19. Kh1 {[%emt 0:00:29][%cal Of5f6]} exf5 {[%emt 0:00:45] Threatens to win with ...g6.} 20. Nxf5 {[%emt 0:02:01]} Nde7 {[%emt 0:01:58] [#]} (20... f6 $5 {[%cal Rf6e5]}) 21. Nxe7+ {[%emt 0:03:28]} (21. Nxg7 $1 $14 Kxg7 22. d4 Bxd4 23. Nxd4 Nxd4 24. Qg4+ Ng6 25. Qxd4) 21... Qxe7 $11 {[%emt 0:00:30]} 22. Qe4 {[%emt 0:00:39]} Qe6 {[%emt 0:05:51]} 23. d4 {[%emt 0:07:56]} Qc4 {[%emt 0:07:46][%csl LRd4,LRf1]} 24. Be3 {[%emt 0:02:25] Ng5 is the strong threat.} f5 {[%emt 0:00:12]} (24... Be7 $15) 25. exf6 $1 {[%emt 0:06:45]} Rxf6 {[%emt 0:00:51]} 26. Bg1 $40 {[%emt 0:11:43][%mdl 128] aiming for Rae1. White is up to no good.} Rcf8 {[%emt 0:03:57] [#]} (26... Ba3 $11) 27. Ng5 $1 $16 {[%emt 0:00:21][%csl Gg5][%cal Re4h7]} Rg6 {[%emt 0:03:27] [#]} 28. dxc5 $1 {[%emt 0:24:15] Intending Rxf8+ and mate. Really sharp!} Rxf1 {[%emt 0:00:04]} 29. Qxc4+ {[%emt 0:00:26][%mdl 64] Remove Defender} bxc4 {[%emt 0:00:02]} 30. Rxf1 {[%emt 0:00:09]} Rxg5 {[%emt 0:00:02][%mdl 4096] Endgame [#] KRB-KRN} 31. Rf3 {[%emt 0:00:56]} (31. Rf4 $1 $16) 31... Rd5 {[%emt 0:00:23]} (31... Re5 $11 {keeps the balance.}) 32. Rxc3 {[%emt 0:00:28]} Kf7 {[%emt 0:00:32]} 33. Rxc4 {[%emt 0:00:28]} Rd2 {[%emt 0:00:02]} 34. h3 {[%emt 0:01:04]} Ke6 {[%emt 0:00:11]} 35. a3 {[%emt 0:01:13]} g6 {[%emt 0:00:52]} 36. Kh2 {[%emt 0:00:33]} Kd5 {[%emt 0:00:35]} 37. Rc3 {[%emt 0:00:07]} a5 {[%emt 0:01:13]} ({Better is} 37... Ne5) 38. Kg3 {[%emt 0:01:27]} a4 {[%emt 0:01:49] [#]} (38... Ke4 $16 {might work better.} 39. Re3+ Kf5) 39. Be3 $1 $18 {[%emt 0:00:49]} Rd1 {[%emt 0:00:01]} 40. Kf2 {[%emt 0:00:00] Hoping for Ke2.} Ra1 $2 {[%emt 0:00:00]} (40... Na7 $16 {was necessary.}) 41. Rd3+ {[%emt 0:02:49]} Kc4 {[%emt 0:00:26]} 42. Rd6 {[%emt 0:02:01]} Kb5 {[%emt 0:00:02]} (42... Ne7 $142 43. c6 Ra2) 43. c4+ {[%emt 0:00:07] Weighted Error Value: White=0.12 (very precise) /Black=0.36} 1-0

[Event "Mongolian Championship Open 2022"]
[Site "Chingis Khentii"]
[Date "2022.05.21"]
[Round "9.2"]
[White "Batsuren, Dambasuren"]
[Black "Battulga, Namkhai"]
[Result "1/2-1/2"]
[ECO "D11"]
[WhiteElo "2501"]
[BlackElo "2402"]
[Annotator "TA"]
[PlyCount "94"]
[EventDate "2022.05.12"]
[EventType "tourn"]
[EventCountry "MGL"]
[SourceTitle "playchess.com"]
[Source "ChessBase"]
[SourceQuality "1"]
[TimeControl "40/5400+30:1800+30"]

{[%evp 9,94,16,8,2,15,22,22,20,13,2,15,18,9,12,7,8,58,7,8,0,0,-5,34,-30,-21,-14,64,67,127,132,115,0,0,0,0,-181,-163,-127,-65,-83,1,4,8,8,10,3,8,0,0,0,0,0,0,-4,0,-8,-9,-98,-6,-62,-54,-45,0,0,0,0,5,0,0,0,0,0,0,0,0,0,0,0,0,0,0,0,0,0,0,0,0]} 1. d4 {[%emt 0:00:03]} d5 {[%emt 0:00:14]} 2. c4 {[%emt 0:00:05]} c6 {[%emt 0:00:05]} 3. Nf3 {[%emt 0:00:05]} Nf6 {[%emt 0:00:04]} 4. Qb3 {[%emt 0:00:06]} a6 {[%emt 0:00:15]} 5. Bg5 {[%emt 0:00:15]} Ne4 {[%emt 0:03:25]} 6. Bf4 {[%emt 0:00:27] [#] D11: Slav Defence: 3 Nf3 sidelines and 3...Nf6 4 e3 Bg4.} b5 $146 {[%emt 0:01:42]} ({Predecessor:} 6... g5 7. Be5 Rg8 8. e3 e6 9. Nc3 Qa5 10. h3 Nd7 11. Bh2 Ndf6 12. Ne5 Nxc3 13. bxc3 {0-1 (28) Semcesen,D (2437)-Blomqvist,E (2487) Sunne 2015}) 7. cxd5 {[%emt 0:02:40]} cxd5 {[%emt 0:01:14]} 8. e3 {[%emt 0:00:30]} Nc6 {[%emt 0:16:02][%cal Bb8c6,Bc6a5,Ba5c4][%mdl 32]} 9. Bd3 $1 {[%emt 0:01:46]} Bf5 {[%emt 0:02:36]} 10. O-O {[%emt 0:01:50]} Na5 {[%emt 0:00:30]} 11. Qc2 {[%emt 0:18:21]} Rc8 {[%emt 0:00:41] Prevents Bc7.} 12. Qe2 {[%emt 0:00:08]} f6 {[%emt 0:25:27] Prevents Ne5.} (12... e6 $11) 13. Nbd2 {[%emt 0:19:38]} (13. Nh4 $14 Be6 14. f3) 13... Nc4 {[%emt 0:11:01]} 14. Rfc1 {[%emt 0:07:52][%cal Of3h4]} g5 {[%emt 0:14:47] Prevents Nh4.} 15. Bg3 {[%emt 0:00:50]} e6 {[%emt 0:09:43]} 16. b3 {[%emt 0:10:20]} (16. Bxe4 $14 dxe4 17. Ne1) 16... Ncxd2 {[%emt 0:00:06]} 17. Nxd2 {[%emt 0:00:06]} Nc3 {[%emt 0:00:06]} ({Better is} 17... Ba3 $1 $11 18. Rxc8 Qxc8 19. Nxe4 dxe4) 18. Qh5+ $14 {[%emt 0:00:33]} Ke7 {[%emt 0:03:00]} (18... Kd7 $1 $14 19. Bxf5 exf5) 19. Bxf5 $16 {[%emt 0:01:36]} exf5 {[%emt 0:00:05] [#]} 20. Kh1 {[%emt 0:00:22]} (20. Nc4 $1 $16 {[%cal Rc4d6][%mdl 512] Hoping for Nd6.} Qe8 21. Bd6+ Ke6 22. Qxe8+ Rxe8 23. Rxc3) 20... Ke6 $11 {[%emt 0:05:32]} 21. f3 {[%emt 0:10:11][%cal Oe3e4] Threatens to win with e4!} Ba3 $1 {[%emt 0:00:11]} 22. Re1 {[%emt 0:00:08]} (22. Rf1 $1 $11 {and White stays safe.}) 22... Qe8 $1 $19 {[%emt 0:03:05]} 23. Qh3 {[%emt 0:00:08] [#]} Kf7 {[%emt 0:00:36]} ({Black should play} 23... Bb2 $1 $17 {[%cal Rb2a1]} 24. e4 Kd7 25. Qxf5+ Qe6 26. Qxe6+ Kxe6 27. exd5+ Kxd5) 24. e4 {[%emt 0:03:22]} dxe4 {[%emt 0:00:32]} (24... fxe4 $17 {...e3 is the strong threat.} 25. fxe4 dxe4) 25. Qxf5 $11 {[%emt 0:02:46][%cal Rd2e4]} Qe6 $132 {[%emt 0:00:51][%mdl 2048] Black is fighting back} 26. Qxe6+ {[%emt 0:01:18]} ({Wrong is} 26. fxe4 $2 Qxf5 27. exf5 Bb2 $19) 26... Kxe6 {[%emt 0:00:01]} 27. Nxe4 {[%emt 0:00:15]} (27. fxe4 $2 Bb2 28. d5+ Kd7 $19) 27... Kf7 {[%emt 0:00:45]} 28. Nxc3 {[%emt 0:09:08]} (28. h4 {is interesting.} h6 29. Nd6+ Bxd6 30. Bxd6 gxh4 31. Kh2) 28... Rxc3 {[%emt 0:00:01]} 29. d5 {[%emt 0:00:10]} Rd8 {[%emt 0:00:39]} 30. Rad1 {[%emt 0:05:14]} Rc2 {[%emt 0:00:06]} 31. d6 {[%emt 0:00:29]} Rd7 {[%emt 0:00:04]} 32. Rd3 {[%emt 0:00:32]} Rxa2 {[%emt 0:00:46]} 33. Rc3 {[%emt 0:01:19] Inhibits Rc2.} (33. h4 $11 {keeps the balance.}) 33... Kg6 {[%emt 0:01:48]} (33... Bxd6 $17 {aiming for ...Bb4.} 34. Rd3 {[#]} Re7 $1 35. Rxd6 Rxe1+ 36. Bxe1 Ra1) 34. Rc7 {[%emt 0:01:02]} (34. Rd1 $11) 34... Rd8 $1 $15 {[%emt 0:00:54] Strongly threatening ...Bb4.} 35. Rc6 {[%emt 0:00:18]} a5 {[%emt 0:00:29]} 36. Rd1 {[%emt 0:00:28] Inhibits Rd2. The position is equal.} a4 {[%emt 0:00:23]} 37. bxa4 bxa4 {[%emt 0:00:01]} 38. h3 {[%emt 0:01:58]} Bb2 $1 {[%emt 0:00:39]} 39. Rd2 {[%emt 0:01:12]} Ra1+ {[%emt 0:00:05]} 40. Kh2 {[%emt 0:00:00]} a3 {[%emt 0:00:00]} 41. d7 {[%emt 0:05:21] Black must now prevent Rc8.} Rc1 {[%emt 0:06:34]} 42. Rxc1 {[%emt 0:01:44]} Bxc1 $11 {[%emt 0:00:02] KRB-KRB} 43. Rd1 {[%emt 0:00:54]} Bb2 {[%emt 0:01:36]} 44. Bc7 {[%emt 0:00:14]} Rxd7 {[%emt 0:00:23]} 45. Rxd7 {[%emt 0:00:06]} a2 {[%emt 0:00:04]} 46. Rd1 {[%emt 0:00:06]} a1=Q {[%emt 0:00:06]} 47. Rxa1 {[%emt 0:00:05]} Bxa1 {[%emt 0:00:05] Weighted Error Value: White=0.23 (precise) /Black=0.15 (very precise)} 1/2-1/2